fUSD/lending_fUSD_20250812
["ID","MTS","AMOUNT","RATE_DAILY","PERIOD"]
[378821256,1755036654675,-591.05,0.00049315,120]
[378821257,1755036654684,-603.08,0.00049315,120]
[378821258,1755036654695,-762.16,0.00049315,120]
[378821259,1755036654704,-1000.0,0.00049315,2]
[378821260,1755036654714,-400.0,0.00049315,120]
[378821261,1755036654723,-400.0,0.00049315,120]
[378821262,1755036654733,-545.47,0.00049315,120]
[378821263,1755036654743,-734.82,0.00049315,120]
[378821264,1755036654752,-400.0,0.00049315,120]
[378821265,1755036654762,-400.0,0.00049315,120]
[378821266,1755036654771,-400.0,0.00049315,120]
[378821267,1755036654780,-400.0,0.00049315,120]
[378821268,1755036654790,-965.29,0.00049315,120]
[378821269,1755036654799,-400.0,0.00049315,120]
[378821270,1755036654809,-945.84,0.00049315,120]
[378821271,1755036654818,-948.56,0.00049315,120]
[378821272,1755036654828,-400.0,0.00049315,120]
[378821273,1755036654839,-286.77,0.00049315,120]
[378821274,1755036654848,-400.0,0.00049315,120]
[378821275,1755036654858,-400.0,0.00049315,120]
[378821276,1755036654867,-473.83,0.00049315,120]
[378821277,1755036654876,-400.0,0.00049315,120]
[378821278,1755036654886,-400.0,0.00049315,120]
[378821279,1755036654895,-400.0,0.00049315,120]
[378821280,1755036654905,-1108.6,0.00049315,120]
[378821281,1755036654915,-1308.31,0.00049315,120]
[378821282,1755036654924,-733.19,0.00049315,120]
[378821283,1755036654933,-442.18,0.00049315,120]
[378821284,1755036654942,-1496.99,0.00049315,120]
[378821285,1755036654951,-400.0,0.00049315,120]
[378821286,1755036654961,-1043.8,0.00049315,120]
[378821287,1755036654970,-400.0,0.00049315,120]
[378821288,1755036654980,-610.15,0.00049315,120]
[378821289,1755036654989,-400.0,0.00049315,120]
[378821290,1755036654998,-2419.96,0.00049315,120]
[378821291,1755036655007,-400.0,0.00049315,120]
[378821292,1755036655017,-400.0,0.00049315,120]
[378821293,1755036655026,-1093.27,0.00049315,120]
[378821294,1755036655036,-3803.28130925,0.00049315,120]
[378821295,1755036655072,-29.91869075,0.00049315,120]
[378821296,1755036655081,-400.0,0.00049315,2]
[378821297,1755036655092,-400.0,0.00049315,120]
[378821298,1755036655101,-389.14655791,0.00049315,120]
[378821299,1755036655284,-1888.0,0.00047695,15]
[378821300,1755036655293,-10.85344209,0.00049315,120]
[378821301,1755036655303,-400.0,0.00049315,120]
[378821302,1755036655312,-400.0,0.00049315,120]
[378821303,1755036655322,-400.0,0.00049315,120]
[378821304,1755036655335,-901.86,0.00049315,120]
[378821305,1755036655344,-450.74,0.00049315,120]
[378821306,1755036655353,-160.58,0.00049315,120]
[378821307,1755036655363,-337.32602154,0.00049315,30]
[378821308,1755036655373,-212.17493,0.0004936,46]
[378821309,1755036655383,-150.0,0.000494,30]
[378821310,1755036655570,-150.0,0.000494,30]
[378821311,1755036655580,-150.0,0.000494,30]
[378821312,1755036655592,-150.0,0.000494,30]
[378821313,1755036655602,-3804.82013211,0.0004941,15]
[378821314,1755036655611,-300.0,0.00049499,120]
[378821315,1755036655621,-3009.56058638,0.00049511,15]
[378821316,1755036655631,-500.0,0.00049578,120]
[378821317,1755036655640,-150.0,0.00049578,120]
[378821318,1755036655650,-500.0,0.00049578,120]
[378821319,1755036655659,-999.0,0.00049578,120]
[378821320,1755036655668,-1583.77,0.00049578,120]
[378821321,1755036655678,-300.0,0.00049588,30]
[378821322,1755036655687,-1000.0,0.00049588,30]
[378821323,1755036655697,-500.0,0.00049588,120]
[378821324,1755036655706,-500.0,0.00049588,120]
[378821325,1755036655715,-150.0,0.00049588,120]
[378821326,1755036655725,-1583.77,0.00049588,120]
[378821327,1755036655735,-1583.77,0.00049588,120]
[378821328,1755036655745,-400.0,0.00049589,2]
[378821329,1755036655755,-333.65625,0.00049589,120]
[378821330,1755036655764,-400.0,0.00049589,120]
[378821331,1755036655774,-415.49,0.00049589,120]
[378821332,1755036655783,-400.0,0.00049589,120]
[378821333,1755036655793,-400.0,0.00049589,120]
[378821334,1755036655802,-400.0,0.00049589,120]
[378821335,1755036655811,-400.0,0.00049589,120]
[378821336,1755036655821,-400.0,0.00049589,120]
[378821337,1755036655831,-400.0,0.00049589,120]
[378821338,1755036655842,-400.0,0.00049589,120]
[378821339,1755036655852,-400.0,0.00049589,120]
[378821340,1755036655861,-400.0,0.00049589,120]
[378821341,1755036655870,-400.0,0.00049589,120]
[378821342,1755036655879,-460.0,0.00049589,120]
[378821343,1755036655890,-400.0,0.00049589,120]
[378821344,1755036655900,-400.0,0.00049589,120]
[378821345,1755036655909,-400.0,0.00049589,120]
[378821346,1755036655919,-400.0,0.00049589,120]
[378821347,1755036655928,-400.0,0.00049589,120]
[378821348,1755036655937,-400.0,0.00049589,120]
[378821349,1755036655947,-400.0,0.00049589,120]
[378821350,1755036655957,-400.0,0.00049589,120]
[378821351,1755036655966,-400.0,0.00049589,120]
[378821352,1755036655975,-400.0,0.00049589,120]
[378821353,1755036655984,-400.0,0.00049589,120]
[378821354,1755036655994,-400.0,0.00049589,120]
[378821355,1755036656003,-303.17,0.00049589,120]
[378821356,1755036656012,-400.0,0.00049589,120]
[378821357,1755036656022,-400.0,0.00049589,120]
[378821358,1755036656031,-400.0,0.00049589,120]
[378821359,1755036656040,-400.0,0.00049589,120]
[378821360,1755036656050,-400.0,0.00049589,120]
[378821361,1755036656059,-400.0,0.00049589,120]
[378821362,1755036656068,-400.0,0.00049589,120]
[378821363,1755036656078,-400.0,0.00049589,120]
[378821364,1755036656088,-400.0,0.00049589,120]
[378821365,1755036656098,-400.0,0.00049589,120]
[378821366,1755036656108,-388.3588348,0.00049589,120]
[378821367,1755036656117,-400.0,0.00049589,120]
[378821368,1755036656126,-426.55,0.00049589,120]
[378821369,1755036656136,-400.0,0.00049589,120]
[378821370,1755036656145,-400.0,0.00049589,120]
[378821371,1755036656155,-400.0,0.00049589,120]
[378821372,1755036656164,-440.742036,0.00049589,120]
[378821373,1755036656173,-400.0,0.00049589,120]
[378821374,1755036656182,-400.0,0.00049589,120]
[378821375,1755036656192,-400.0,0.00049589,120]
[378821376,1755036656201,-400.0,0.00049589,120]
[378821377,1755036656211,-400.0,0.00049589,120]
[378821378,1755036656220,-400.0,0.00049589,120]
[378821379,1755036656230,-446.98,0.00049589,120]
[378821380,1755036656240,-400.0,0.00049589,120]
[378821381,1755036656250,-400.0,0.00049589,120]
[378821382,1755036656260,-400.0,0.00049589,120]
[378821383,1755036656270,-400.0,0.00049589,120]
[378821384,1755036656280,-400.0,0.00049589,120]
[378821385,1755036656290,-400.0,0.00049589,120]
[378821386,1755036656299,-400.0,0.00049589,120]
[378821387,1755036656310,-400.0,0.00049589,120]
[378821388,1755036656319,-400.0,0.00049589,120]
[378821389,1755036656331,-400.0,0.00049589,120]
[378821390,1755036656342,-400.0,0.00049589,120]
[378821391,1755036656352,-400.0,0.00049589,120]
[378821392,1755036656363,-400.0,0.00049589,120]
[378821393,1755036656374,-400.0,0.00049589,120]
[378821394,1755036656384,-400.0,0.00049589,120]
[378821395,1755036656394,-400.0,0.00049589,120]
[378821396,1755036656405,-400.0,0.00049589,120]
[378821397,1755036656414,-400.0,0.00049589,120]
[378821398,1755036656424,-527.96,0.00049589,120]
[378821399,1755036656434,-300.0,0.00049589,120]
[378821400,1755036656444,-400.0,0.00049589,120]
[378821401,1755036656453,-400.0,0.00049589,120]
[378821402,1755036656463,-400.0,0.00049589,120]
[378821403,1755036656473,-400.0,0.00049589,120]
[378821404,1755036656482,-400.0,0.00049589,120]
[378821405,1755036656492,-400.0,0.00049589,120]
[378821406,1755036656501,-760.81,0.00049589,120]
[378821407,1755036656511,-400.0,0.00049589,120]
[378821408,1755036656521,-400.0,0.00049589,120]
[378821409,1755036656530,-400.0,0.00049589,120]
[378821410,1755036656540,-912.34,0.00049589,120]
[378821411,1755036656550,-451.94770162,0.00049589,120]
[378821412,1755036656559,-527.64,0.00049589,120]
[378821413,1755036656569,-400.0,0.00049589,120]
[378821414,1755036656578,-400.0,0.00049589,120]
[378821415,1755036656589,-555.64,0.00049589,120]
[378821416,1755036656599,-400.0,0.00049589,120]
[378821417,1755036656608,-400.0,0.00049589,120]
[378821418,1755036656618,-400.0,0.00049589,120]
[378821419,1755036656628,-400.0,0.00049589,120]
[378821420,1755036656639,-400.0,0.00049589,120]
[378821421,1755036656661,-400.0,0.00049589,120]
[378821422,1755036656679,-400.0,0.00049589,120]
[378821423,1755036656689,-400.0,0.00049589,120]
[378821424,1755036656699,-406.36,0.00049589,120]
[378821425,1755036656710,-400.0,0.00049589,120]
[378821426,1755036656721,-520.96,0.00049589,120]
[378821427,1755036656731,-186.67082486,0.00049589,120]
[378821428,1755036656742,-400.0,0.00049589,120]
[378821429,1755036656752,-400.0,0.00049589,120]
[378821430,1755036656761,-400.0,0.00049589,120]
[378821431,1755036656771,-400.0,0.00049589,120]
[378821432,1755036656781,-400.0,0.00049589,120]
[378821433,1755036656791,-219.87802444,0.00049589,120]
[378821434,1755036656809,-217.03197556,0.00049589,120]
[378821435,1755036656819,-428.86,0.00049589,120]
[378821436,1755036656831,-400.0,0.00049589,120]
[378821437,1755036656842,-400.0,0.00049589,120]
[378821438,1755036656852,-336.3149155,0.00049589,120]
[378821439,1755036657642,-210.0,0.000435,5]
[378821440,1755036657652,-400.0,0.00049315,120]
[378821441,1755036657662,-63.6850845,0.00049589,120]
[378821442,1755036657672,-400.0,0.00049589,120]
[378821443,1755036657682,-400.0,0.00049589,120]
[378821444,1755036657691,-976.74,0.00049589,120]
[378821445,1755036657701,-587.74,0.00049589,120]
[378821446,1755036657711,-400.0,0.00049589,120]
[378821447,1755036657721,-400.0,0.00049589,120]
[378821448,1755036657731,-400.0,0.00049589,120]
[378821449,1755036657740,-400.0,0.00049589,120]
[378821450,1755036657751,-426.71,0.00049589,120]
[378821451,1755036657822,-400.0,0.00049589,120]
[378821452,1755036657831,-400.0,0.00049589,120]
[378821453,1755036657841,-499.01,0.00049589,120]
[378821454,1755036657851,-310.44322978,0.00049589,120]
[378821455,1755036657860,-400.0,0.00049589,120]
[378821456,1755036657869,-400.0,0.00049589,120]
[378821457,1755036657878,-400.0,0.00049589,120]
[378821458,1755036657888,-400.0,0.00049589,120]
[378821459,1755036657897,-760.38,0.00049589,120]
[378821460,1755036657907,-428.22,0.00049589,120]
[378821461,1755036657916,-581.07,0.00049589,120]
[378821462,1755036657926,-400.0,0.00049589,120]
[378821463,1755036657937,-400.0,0.00049589,120]
[378821464,1755036657947,-400.0,0.00049589,120]
[378821465,1755036657957,-403.68,0.00049589,120]
[378821466,1755036657967,-400.0,0.00049589,120]
[378821467,1755036657976,-400.25,0.00049589,120]
[378821468,1755036657986,-400.0,0.00049589,120]
[378821469,1755036657995,-503.68163728,0.00049589,120]
[378821470,1755036658004,-289.36004844,0.00049589,120]
[378821471,1755036658026,-315.00995156,0.00049589,120]
[378821472,1755036658036,-400.0,0.00049589,120]
[378821473,1755036658045,-400.0,0.00049589,120]
[378821474,1755036658055,-400.0,0.00049589,120]
[378821475,1755036658065,-1067.63,0.00049589,120]
[378821476,1755036658074,-400.0,0.00049589,120]
[378821477,1755036658084,-400.0,0.00049589,120]
[378821478,1755036658094,-400.0,0.00049589,120]
[378821479,1755036658103,-400.0,0.00049589,120]
[378821480,1755036658112,-380.26004842,0.00049589,120]
[378821481,1755037201697,300.0,0.00027651,120]
[378821482,1755037422602,175.86,0.00013699,2]
[378821484,1755037621603,400.0,0.000188,6]
[378821485,1755037623706,900.0,0.000189,6]
[378821501,1755037831412,-1200.0,0.00017999,2]
[378821504,1755037831422,-837.40560281,0.00018,2]
[378821505,1755037831507,-992.09769334,0.00018,2]
[378821506,1755037831518,-9925.17946185,0.00018,2]
[378821507,1755037831529,-7925.88798788,0.00018,2]
[378821508,1755037831539,-250.0,0.000184,2]
[378821509,1755037831548,-158.29154838,0.000188,2]
[378821510,1755037831557,-162.13954209,0.000189,2]
[378821511,1755037831567,-1821.92139896,0.000189,2]
[378821512,1755037831576,-150.21601476,0.000189,2]
[378821513,1755037831586,-3439.48806375,0.000189,2]
[378821514,1755037831595,-300.0,0.00018999,2]
[378821515,1755037831605,-507.61813966,0.00018999,2]
[378821516,1755037831614,-235.58954609,0.00018999,2]
[378821517,1755037831623,-167.99093064,0.00018999,2]
[378821518,1755037831633,-4129.70349108,0.00019,2]
[378821519,1755037831644,-6097.47780112,0.00019,2]
[378821520,1755037831662,-5714.28765658,0.00019,2]
[378821521,1755037831674,-20554.444797,0.00019,2]
[378821522,1755037831687,-22703.3867557,0.00019,2]
[378821523,1755037831710,-38333.38054723,0.00019,2]
[378821524,1755037831722,-930.50693331,0.00019,2]
[378821554,1755037837479,-240.95573315,0.00018399,2]
[378821555,1755037837488,-148206.91061388,0.00019,2]
[378821556,1755037837500,-1082.68160948,0.00019,2]
[378821557,1755037837578,-888.0,0.00019,2]
[378821558,1755037837603,-972864.58771614,0.00019,2]
[378821559,1755037837613,-234.51,0.00019,2]
[378821560,1755037837622,-169876.75690437,0.00019,2]
[378821561,1755037837632,-396.0,0.00019735,2]
[378821562,1755037837641,-300.0,0.000198,2]
[378821563,1755037837651,-250.0,0.000198,2]
[378821564,1755037837661,-154.36,0.00020597,2]
[378821565,1755037837671,-3439.48806374,0.0002236,2]
[378821566,1755037837685,-1821.92139895,0.0002239,2]
[378821567,1755037837694,-1389.38334872,0.000225,2]
[378821568,1755037837703,-150.21601472,0.00023779,2]
[378821569,1755037837712,-150.0,0.00024799,2]
[378821570,1755037837721,-219632.92547987,0.00024799,2]
[378821571,1755037837731,-2644.37663296,0.00024799,2]
[378821572,1755037837740,-238868.833735,0.000248,2]
[378821573,1755037837749,-997.97504334,0.0002488,7]
[378821574,1755037837759,-305970.870297,0.000249,2]
[378821575,1755037837768,-466.07780003,0.00025,60]
[378821577,1755037837777,-3439.48806374,0.00025819,2]
[378821578,1755037837787,-170.0,0.00025854,7]
[378821579,1755037837796,-18377.64,0.00025854,2]
[378821580,1755037837807,-1821.92139895,0.0002588,2]
[378821581,1755037837816,-666.0,0.00026217,3]
[378821582,1755037837826,-448.77,0.00026489,2]
[378821583,1755037837835,-3748.83940298,0.0002739,2]
[378821584,1755037837849,-156.0360214,0.000274,2]
[378821585,1755037837859,-166.66666667,0.00027551,2]
[378821586,1755037837868,-654.401769,0.00028,60]
[378821587,1755037837877,-1167.04,0.0002809,2]
[378821588,1755037837887,-6160.52,0.0002809,7]
[378821589,1755037837897,-150.21601472,0.00028657,2]
[378821590,1755037837906,-3439.48806374,0.00029279,2]
[378821591,1755037837915,-1821.92139895,0.0002937,2]
[378821592,1755037837924,-399.999998,0.0003,2]
[378821593,1755037837933,-406.57745121,0.0003013,2]
[378821594,1755037837943,-150.0,0.00030547,2]
[378821595,1755037837952,-250.0,0.000308,30]
[378821596,1755037837961,-399.999999,0.0003121,2]
[378821597,1755037837973,-309.47,0.00031728,30]
[378821598,1755037837982,-3439.48806374,0.00032738,2]
[378821599,1755037837992,-1821.92139895,0.0003286,2]
[378821600,1755037838002,-999.99,0.00033038,2]
[378821601,1755037838011,-150.21601472,0.00033536,2]
[378821602,1755037838021,-309.47,0.00034392,30]
[378821603,1755037838030,-2477.46475509,0.000345,2]
[378821604,1755037838039,-194.6,0.00034568,120]
[378821605,1755037838048,-3439.48806374,0.00036198,2]
[378821606,1755037838057,-1821.92139895,0.0003635,2]
[378821607,1755037838066,-179.89,0.00036879,2]
[378821608,1755037838076,-162.13954209,0.000369,15]
[378821609,1755037838084,-309.47,0.00037056,60]
[378821610,1755037838094,-452.60752921,0.00037285,30]
[378821611,1755037838104,-300.0,0.00037654,10]
[378821612,1755037838114,-151.54805674,0.00037654,2]
[378821613,1755037838123,-54859.71656511,0.00037655,2]
[378821614,1755037838133,-84269.7560234,0.00037655,2]
[378821615,1755037838142,-187841.83248782,0.00037655,2]
[378821616,1755037838151,-45990.33091059,0.00037655,2]
[378821617,1755037838161,-6267.16650703,0.00037655,7]
[378821618,1755037838170,-741.13,0.000377,2]
[378821619,1755037838180,-155.0,0.00038,120]
[378821620,1755037838189,-153.0,0.00038,120]
[378821621,1755037838198,-150.21601472,0.00038414,2]
[378821622,1755037838213,-9999.999999,0.000385,120]
[378821623,1755037838227,-179.89,0.00038723,2]
[378821624,1755037838236,-1167.04,0.00039326,2]
[378821625,1755037838245,-810.0,0.00039458,2]
[378821626,1755037838254,-1253.0,0.00039458,2]
[378821627,1755037838263,-21456.0,0.00039458,2]
[378821628,1755037838273,-1156.357,0.00039458,2]
[378821629,1755037838282,-2669.454,0.00039458,2]
[378821630,1755037838291,-3439.48806374,0.00039657,2]
[378821631,1755037838302,-309.47,0.00039719,60]
[378821632,1755037838312,-265.20738845,0.00039726,15]
[378821633,1755037838321,-1821.92139895,0.0003984,15]
[378821634,1755037838330,-5166.34353352,0.0004,120]
[378821635,1755037838339,-153.0,0.0004,120]
[378821636,1755037838349,-155.0,0.000405,120]
[378821637,1755037838358,-182.49,0.00040517,2]
[378821638,1755037838367,-179.89,0.00040567,2]
[378821639,1755037838376,-1400.0,0.000409,14]
[378821640,1755037838386,-150.89558438,0.000409,120]
[378821641,1755037838397,-150.89558438,0.000409,120]
[378821642,1755037838405,-150.89558438,0.000409,120]
[378821643,1755037838414,-150.89558438,0.000409,120]
[378821644,1755037838423,-150.89558438,0.000409,120]
[378821645,1755037838433,-150.89558438,0.000409,120]
[378821646,1755037838443,-150.89558438,0.000409,120]
[378821647,1755037838452,-150.0,0.000413,2]
[378821648,1755037838462,-741.13,0.000413,2]
[378821649,1755037838472,-1999.23743,0.00041668,2]
[378821650,1755037838706,-13071.00741356,0.00041704,2]
[378821651,1755037838724,-4040.21779216,0.00041723,2]
[378821652,1755037838734,-13071.00741356,0.00041726,2]
[378821653,1755037838744,-360.02594856,0.00041736,2]
[378821654,1755037838753,-2552.60389788,0.00041739,2]
[378821655,1755037838763,-2552.60389788,0.00041743,2]
[378821656,1755037838773,-4040.21779216,0.0004176,2]
[378821657,1755037838782,-13071.00741356,0.0004176,2]
[378821658,1755037838792,-360.02594856,0.0004176,2]
[378821659,1755037838801,-1999.23743,0.00041777,2]
[378821660,1755037838811,-1999.23743,0.0004178,2]
[378821661,1755037838820,-4040.21779216,0.00041796,2]
[378821662,1755037838830,-4040.21779216,0.000418,2]
[378821663,1755037838839,-11593.37564573,0.00041815,2]
[378821664,1755037838848,-2552.60389788,0.00041826,2]
[378821665,1755037838857,-11593.37564573,0.00041836,2]
[378821666,1755037838866,-360.02594856,0.00041848,2]
[378821667,1755037838876,-360.02594856,0.00041869,2]
[378821668,1755037838886,-13071.00741356,0.00041871,2]
[378821669,1755037838895,-1999.23743,0.00041949,2]
[378821670,1755037838905,-2552.60389788,0.00041955,2]
[378821671,1755037838914,-11593.37564573,0.00041955,2]
[378821672,1755037838923,-11593.37564573,0.00041959,2]
[378821673,1755037838932,-1000.0,0.00042,25]
[378821674,1755037838941,-153.0,0.000421,120]
[378821675,1755037838950,-309.47,0.00042383,60]
[378821676,1755037838961,-179.89,0.00042411,2]
[378821677,1755037838970,-150.89558438,0.00042478,120]
[378821678,1755037838979,-182.49,0.00042543,2]
[378821679,1755037838989,-1000.0,0.00043,60]
[378821680,1755037838999,-155.0,0.000431,120]
[378821681,1755037839008,-3439.48806374,0.00043117,15]
[378821682,1755037839018,-150.21601472,0.00043293,28]
[378821683,1755037839027,-1821.92139895,0.0004333,15]
[378821684,1755037839036,-1011.0,0.000434,5]
[378821685,1755037839045,-536.12,0.00043513,30]
[378821686,1755037839055,-1267.869,0.0004374,68]
[378821687,1755037839064,-741.13,0.000438,2]
[378821688,1755037839073,-153.0,0.00043836,60]
[378821689,1755037839083,-153.0,0.00043836,60]
[378821690,1755037839092,-153.0,0.00043836,60]
[378821691,1755037839102,-153.0,0.00043836,60]
[378821692,1755037839115,-153.0,0.00043836,60]
[378821693,1755037839126,-153.0,0.00043836,60]
[378821694,1755037839136,-153.0,0.00043836,60]
[378821695,1755037839145,-153.0,0.00043836,60]
[378821696,1755037839154,-153.0,0.00043836,60]
[378821697,1755037839164,-153.0,0.00043836,60]
[378821698,1755037839173,-153.0,0.00043836,60]
[378821699,1755037839183,-153.0,0.00043836,60]
[378821700,1755037839193,-153.0,0.00043836,60]
[378821701,1755037839202,-153.0,0.00043836,60]
[378821702,1755037839211,-153.0,0.00043836,60]
[378821703,1755037839220,-153.0,0.00043836,60]
[378821704,1755037839229,-153.0,0.00043836,60]
[378821705,1755037839238,-153.0,0.00043836,60]
[378821706,1755037839247,-153.0,0.00043836,60]
[378821707,1755037839256,-741.84,0.00044,120]
[378821708,1755037839266,-364.0,0.00044,120]
[378821709,1755037839275,-153.0,0.000441,120]
[378821710,1755037839284,-152.0,0.000442,120]
[378821711,1755037839293,-499.94551932,0.000445,120]
[378821712,1755037839303,-182.49,0.00044569,2]
[378821713,1755037839311,-5713.31892014,0.00044966,90]
[378821714,1755037839321,-1000.0,0.00045,30]
[378821715,1755037839331,-26000.0,0.00045,30]
[378821716,1755037839340,-364.0,0.00045,120]
[378821717,1755037839349,-1813.80512981,0.00045,120]
[378821718,1755037839359,-10739.13312116,0.00045,30]
[378821719,1755037839368,-150.0,0.00045,120]
[378821720,1755037839378,-843.0035059,0.00045,30]
[378821721,1755037839387,-2065.31,0.00045,14]
[378821722,1755037839398,-309.47,0.00045047,120]
[378821724,1755037839407,-936.14,0.00045185,30]
[378821725,1755037839416,-1144.77,0.00045185,30]
[378821726,1755037839426,-1000.0,0.0004525,30]
[378821727,1755037839435,-175.25450384,0.00045288,30]
[378821728,1755037839444,-168.0,0.00045329,2]
[378821729,1755037839454,-234.51,0.000454,14]
[378821730,1755037839463,-152.0,0.000454,120]
[378821731,1755037839473,-210.0,0.0004549,30]
[378821732,1755037839483,-1000.0,0.000455,30]
[378821733,1755037839492,-155.0,0.000456,120]
[378821734,1755037839502,-741.13,0.000456,2]
[378821735,1755037839511,-1000.0,0.0004575,30]
[378821736,1755037839520,-175.25450384,0.00045781,30]
[378821737,1755037839529,-150.0,0.00045801,120]
[378821738,1755037839538,-150.89558438,0.00045847,120]
[378821739,1755037839547,-1040.22973582,0.000459,120]
[378821740,1755037839556,-168.0,0.0004593,2]
[378821741,1755037839565,-1000.0,0.0004595,30]
[378821742,1755037839575,-301.71265597,0.0004597,3]
[378821743,1755037839585,-500.0,0.00046,120]
[378821744,1755037839594,-364.0,0.00046,120]
[378821745,1755037839603,-202.54289403,0.00046,30]
[378821746,1755037839613,-217.42863924,0.00046,120]
[378821747,1755037839622,-153.0,0.000461,120]
[378821748,1755037839631,-175.25450384,0.00046274,30]
[378821749,1755037839641,-2065.31,0.000463,14]
[378821750,1755037839652,-177.1,0.00046346,120]
[378821751,1755037839662,-333.13,0.00046384,2]
[378821752,1755037839672,-2704.74,0.00046557,2]
[378821753,1755037839683,-152.0,0.00046568,3]
[378821754,1755037839693,-3439.48806374,0.00046576,15]
[378821755,1755037839703,-2000.0,0.00046577,90]
[378821756,1755037839712,-209.0,0.0004659,30]
[378821757,1755037839722,-210.0,0.0004659,30]
[378821758,1755037839731,-182.49,0.00046595,2]
[378821759,1755037839740,-152.0,0.000466,120]
[378821760,1755037839750,-1358.08,0.00046618,2]
[378821761,1755037839759,-20411.32,0.00046634,2]
[378821762,1755037839769,-314.25,0.000467,7]
[378821763,1755037839778,-175.25450384,0.00046767,30]
[378821764,1755037839787,-270.0,0.00046767,120]
[378821765,1755037839796,-300.0,0.00046796,120]
[378821766,1755037839806,-1821.92139895,0.0004682,15]
[378821767,1755037839815,-458.2224,0.00046986,20]
[378821768,1755037839824,-2000.0,0.00047,90]
[378821769,1755037839833,-364.0,0.00047,120]
[378821770,1755037839843,-168.0,0.00047045,2]
[378821771,1755037839852,-1000.0,0.0004705,120]
[378821772,1755037839861,-2000.0,0.000471,90]
[378821773,1755037839870,-2000.0,0.000472,90]
[378821774,1755037839879,-175.25450384,0.00047288,30]
[378821775,1755037839889,-2000.0,0.000473,90]
[378821776,1755037839899,-2000.0,0.000474,90]
[378821777,1755037839909,-2065.31,0.000474,14]
[378821778,1755037839918,-2000.0,0.000475,90]
[378821780,1755037839927,-572.88,0.00047574,120]
[378821782,1755037839937,-209.0,0.0004768,30]
[378821784,1755037839946,-210.0,0.0004768,30]
[378821786,1755037839955,-2000.0,0.000477,90]
[378821788,1755037839965,-309.47,0.0004771,120]
[378821790,1755037839975,-1000.0,0.00047761,2]
[378821792,1755037839984,-152.0,0.000478,120]
[378821794,1755037839993,-705.69531877,0.00047835,120]
[378821796,1755037840002,-364.0,0.00048,120]
[378821798,1755037840011,-21194.63388058,0.00048,30]
[378821800,1755037840021,-150.21601472,0.00048171,28]
[378821802,1755037840031,-155.0,0.000482,120]
[378821804,1755037840039,-153.0,0.000482,120]
[378821806,1755037840048,-173.23,0.00048478,30]
[378821808,1755037840058,-151.16957197,0.00048517,120]
[378821809,1755037840067,-182.49,0.00048621,2]
[378821811,1755037840076,-250.0,0.0004867,3]
[378821813,1755037840086,-2065.31,0.000487,14]
[378821815,1755037840095,-209.0,0.0004877,30]
[378821817,1755037840104,-210.0,0.0004877,30]
[378821819,1755037840113,-16217.36686576,0.00048789,2]
[378821820,1755037840123,-1000.0,0.00048799,120]
[378821822,1755037840132,-5000.0,0.00048829,60]
[378821824,1755037840141,-1900.0,0.000489,17]
[378821826,1755037840152,-792.0898273,0.000489,2]
[378821828,1755037840161,-281.26548144,0.0004897,120]